[Event "*** Titled Tuesday Blitz"]
[Site "Chess.com"]
[Date "2019.02.05"]
[Round "6"]
[White "OparinGrigoriy"]
[Black "justantan"]
[Result "1-0"]
[WhiteElo "2924"]
[BlackElo "2712"]
[TimeControl "180+2"]
[EndTime "14:17:48 PST"]
[Termination "OparinGrigoriy won by resignation"]

1. Nf3 {[%clk 0:03:01.9]} 1... d5 {[%clk 0:02:59.1]} 2. g3 {[%clk 0:03:03.8]}
2... Nf6 {[%clk 0:02:59.8]} 3. Bg2 {[%clk 0:03:05.2]} 3... e6 {[%clk 0:03:01.1]}
4. d4 {[%clk 0:03:05.6]} 4... Be7 {[%clk 0:03:00.9]} 5. c4 {[%clk 0:03:07]} 5...
O-O {[%clk 0:03:02.8]} 6. Nc3 {[%clk 0:03:08.3]} 6... dxc4 {[%clk 0:03:01.7]} 7.
Ne5 {[%clk 0:03:09.4]} 7... Qd6 {[%clk 0:03:01.3]} 8. a4 {[%clk 0:03:07.7]} 8...
Rd8 {[%clk 0:03:00.5]} 9. Nb5 {[%clk 0:03:04.9]} 9... Qb4+ {[%clk 0:02:39.7]}
10. Bd2 {[%clk 0:03:01.9]} 10... Qxb2 {[%clk 0:02:40.6]} 11. Nxc4 {[%clk
0:02:37.3]} 11... Qxa1 {[%clk 0:02:35.9]} 12. Qxa1 {[%clk 0:02:39.2]} 12... Na6
{[%clk 0:02:37.5]} 13. O-O {[%clk 0:02:38.6]} 13... c6 {[%clk 0:02:37]} 14. Nba3
{[%clk 0:02:39.5]} 14... Bd7 {[%clk 0:02:35.2]} 15. Ne5 {[%clk 0:02:39.9]} 15...
Be8 {[%clk 0:02:36.7]} 16. Nac4 {[%clk 0:02:38.9]} 16... Rac8 {[%clk 0:02:36.2]}
17. Rb1 {[%clk 0:02:39.3]} 17... b6 {[%clk 0:02:37.3]} 18. Rc1 {[%clk 0:02:37]}
18... c5 {[%clk 0:02:37.4]} 19. Bb7 {[%clk 0:02:33.5]} 1-0

[Event "*** Titled Tuesday Blitz"]
[Site "Chess.com"]
[Date "2019.02.05"]
[Round "6"]
[White "PawnEatingZombie"]
[Black "HanSchut"]
[Result "0-1"]
[WhiteElo "2116"]
[BlackElo "2309"]
[TimeControl "180+2"]
[EndTime "14:18:07 PST"]
[Termination "HanSchut won by resignation"]

1. d4 {[%clk 0:03:01.9]} 1... Nf6 {[%clk 0:03:00]} 2. c4 {[%clk 0:03:02.9]} 2...
g6 {[%clk 0:03:01.5]} 3. Nc3 {[%clk 0:03:04.3]} 3... d5 {[%clk 0:03:03]} 4. cxd5
{[%clk 0:03:05.1]} 4... Nxd5 {[%clk 0:03:04.6]} 5. e4 {[%clk 0:03:06.8]} 5...
Nxc3 {[%clk 0:03:06]} 6. bxc3 {[%clk 0:03:08.7]} 6... Bg7 {[%clk 0:03:07.2]} 7.
Bg5 {[%clk 0:03:10.4]} 7... c6 {[%clk 0:03:04]} 8. Qd2 {[%clk 0:03:07.8]} 8...
Qa5 {[%clk 0:03:03.5]} 9. Rc1 {[%clk 0:03:08.2]} 9... h6 {[%clk 0:03:01.5]} 10.
Be3 {[%clk 0:03:08.6]} 10... Nd7 {[%clk 0:02:59.3]} 11. Nf3 {[%clk 0:03:08.6]}
11... Nf6 {[%clk 0:02:57.2]} 12. Bd3 {[%clk 0:03:07.7]} 12... Ng4 {[%clk
0:02:57.7]} 13. Bf4 {[%clk 0:03:06.5]} 13... e5 {[%clk 0:02:57.3]} 14. Bg3
{[%clk 0:02:59.7]} 14... exd4 {[%clk 0:02:49.9]} 15. cxd4 {[%clk 0:03:00.7]}
15... Qxd2+ {[%clk 0:02:51.3]} 16. Kxd2 {[%clk 0:03:00.9]} 16... O-O {[%clk
0:02:46.3]} 17. h3 {[%clk 0:03:01.9]} 17... Nf6 {[%clk 0:02:46.3]} 18. Ke3
{[%clk 0:02:32.1]} 18... Re8 {[%clk 0:02:33.1]} 19. Rhe1 {[%clk 0:02:31.2]}
19... Nxe4 {[%clk 0:02:27.6]} 20. Bxe4 {[%clk 0:02:31]} 20... f5 {[%clk
0:02:29.1]} 21. Kd3 {[%clk 0:02:30.2]} 21... fxe4+ {[%clk 0:02:28.8]} 0-1

[Event "*** Titled Tuesday Blitz"]
[Site "Chess.com"]
[Date "2019.02.05"]
[Round "6"]
[White "Blitzstream"]
[Black "26andrej26"]
[Result "1-0"]
[WhiteElo "2561"]
[BlackElo "2421"]
[TimeControl "180+2"]
[EndTime "14:18:53 PST"]
[Termination "Blitzstream won by resignation"]

1. g3 {[%clk 0:03:01.9]} 1... g6 {[%clk 0:03:00.8]} 2. Bg2 {[%clk 0:03:02.1]}
2... Bg7 {[%clk 0:03:02.7]} 3. d3 {[%clk 0:03:03]} 3... Nf6 {[%clk 0:03:03]} 4.
b3 {[%clk 0:03:04.2]} 4... d6 {[%clk 0:03:04.9]} 5. Bb2 {[%clk 0:03:05.4]} 5...
e5 {[%clk 0:03:05.7]} 6. Nd2 {[%clk 0:03:06.5]} 6... O-O {[%clk 0:03:06.2]} 7.
e3 {[%clk 0:03:07.9]} 7... c5 {[%clk 0:03:05.6]} 8. Ne2 {[%clk 0:03:09.1]} 8...
Nc6 {[%clk 0:03:06.8]} 9. a3 {[%clk 0:03:10.1]} 9... Be6 {[%clk 0:03:06.6]} 10.
h3 {[%clk 0:03:11.5]} 10... Qd7 {[%clk 0:03:07.1]} 11. f4 {[%clk 0:03:04.1]}
11... Rae8 {[%clk 0:03:06.2]} 12. e4 {[%clk 0:02:44.8]} 12... exf4 {[%clk
0:03:02.6]} 13. Nxf4 {[%clk 0:02:42.2]} 13... d5 {[%clk 0:03:00.7]} 14. O-O
{[%clk 0:02:33.3]} 14... dxe4 {[%clk 0:02:59.6]} 15. Bxf6 {[%clk 0:02:32.5]}
15... Bxf6 {[%clk 0:02:58.6]} 16. Nxe4 {[%clk 0:02:33.9]} 16... Bd4+ {[%clk
0:02:48.3]} 17. Kh2 {[%clk 0:02:33.4]} 17... Bf5 {[%clk 0:01:58.6]} 18. c3
{[%clk 0:02:26.1]} 18... Bxe4 {[%clk 0:01:58.5]} 19. dxe4 {[%clk 0:02:26.5]} 1-0

[Event "*** Titled Tuesday Blitz"]
[Site "Chess.com"]
[Date "2019.02.05"]
[Round "6"]
[White "2165149677570"]
[Black "Satscho"]
[Result "1-0"]
[WhiteElo "2315"]
[BlackElo "2291"]
[TimeControl "180+2"]
[EndTime "14:18:54 PST"]
[Termination "2165149677570 won by resignation"]

1. e4 {[%clk 0:03:01.9]} 1... c5 {[%clk 0:02:57.1]} 2. Nf3 {[%clk 0:03:03]} 2...
d6 {[%clk 0:02:55.6]} 3. d4 {[%clk 0:03:02.6]} 3... cxd4 {[%clk 0:02:57.5]} 4.
Qxd4 {[%clk 0:03:04.5]} 4... Nc6 {[%clk 0:02:26.6]} 5. Bb5 {[%clk 0:03:02.9]}
5... Bd7 {[%clk 0:02:27.9]} 6. Bxc6 {[%clk 0:03:02.7]} 6... bxc6 {[%clk
0:02:29.8]} 7. O-O {[%clk 0:03:00.9]} 7... Nf6 {[%clk 0:02:31.3]} 8. Nbd2 {[%clk
0:03:01.1]} 8... Qb6 {[%clk 0:02:32.2]} 9. Qd3 {[%clk 0:02:59.5]} 9... e5 {[%clk
0:02:31.9]} 10. Nc4 {[%clk 0:03:00.6]} 10... Qc7 {[%clk 0:02:20.1]} 11. Rd1
{[%clk 0:02:48.5]} 11... Bg4 {[%clk 0:01:55.5]} 12. Nxd6+ {[%clk 0:02:45.3]}
12... Bxd6 {[%clk 0:01:56.3]} 13. Qxd6 {[%clk 0:02:46.9]} 13... Qxd6 {[%clk
0:01:58.2]} 14. Rxd6 {[%clk 0:02:48.2]} 14... Nxe4 {[%clk 0:01:55.2]} 15. Rxc6
{[%clk 0:02:48.2]} 15... Kd7 {[%clk 0:01:55.4]} 16. Nxe5+ {[%clk 0:02:48.6]}
16... Ke7 {[%clk 0:01:49]} 17. Nxg4 {[%clk 0:02:49.9]} 17... Rhd8 {[%clk
0:01:50]} 18. Be3 {[%clk 0:02:46.2]} 18... f5 {[%clk 0:01:46.6]} 19. Ne5 {[%clk
0:02:46]} 19... Rd5 {[%clk 0:01:47.8]} 20. Nd3 {[%clk 0:02:43.4]} 20... Rad8
{[%clk 0:01:48.4]} 21. Rc7+ {[%clk 0:02:43.3]} 21... Kf8 {[%clk 0:01:49.4]} 22.
Rxa7 {[%clk 0:02:43.8]} 22... g5 {[%clk 0:01:50.1]} 23. f3 {[%clk 0:02:40.5]}
23... Nf6 {[%clk 0:01:48.8]} 24. Bxg5 {[%clk 0:02:41]} 1-0

[Event "*** Titled Tuesday Blitz"]
[Site "Chess.com"]
[Date "2019.02.05"]
[Round "6"]
[White "INLOVEWITHF"]
[Black "LyonBeast"]
[Result "0-1"]
[WhiteElo "2298"]
[BlackElo "2901"]
[TimeControl "180+2"]
[EndTime "14:20:28 PST"]
[Termination "LyonBeast won by resignation"]

1. e4 {[%clk 0:03:01.9]} 1... c6 {[%clk 0:02:58]} 2. d4 {[%clk 0:03:02]} 2... d5
{[%clk 0:02:59.4]} 3. e5 {[%clk 0:02:59.2]} 3... Bf5 {[%clk 0:02:59.5]} 4. h4
{[%clk 0:02:59.5]} 4... h6 {[%clk 0:02:58]} 5. g4 {[%clk 0:02:57.6]} 5... Be4
{[%clk 0:02:58.7]} 6. f3 {[%clk 0:02:57.9]} 6... Bh7 {[%clk 0:03:00.2]} 7. e6
{[%clk 0:02:58.6]} 7... Nf6 {[%clk 0:03:01.4]} 8. Bd3 {[%clk 0:02:48]} 8... Bxd3
{[%clk 0:02:53.6]} 9. Qxd3 {[%clk 0:02:48.4]} 9... Qd6 {[%clk 0:02:55.2]} 10.
exf7+ {[%clk 0:02:48.2]} 10... Kxf7 {[%clk 0:02:57.1]} 11. Ne2 {[%clk 0:02:43]}
11... Nbd7 {[%clk 0:02:52.2]} 12. Bf4 {[%clk 0:02:27]} 12... e5 {[%clk
0:02:52.6]} 13. dxe5 {[%clk 0:02:20.4]} 13... Nxe5 {[%clk 0:02:54.5]} 14. Bxe5
{[%clk 0:02:18.8]} 14... Qxe5 {[%clk 0:02:55.4]} 15. c3 {[%clk 0:02:16.3]} 15...
Re8 {[%clk 0:02:53.6]} 16. Kf2 {[%clk 0:02:00.8]} 16... Bc5+ {[%clk 0:02:53.6]}
17. Nd4 {[%clk 0:02:01.2]} 17... Rhf8 {[%clk 0:02:54]} 18. Nd2 {[%clk 0:01:51]}
18... Kg8 {[%clk 0:02:53.3]} 19. Rae1 {[%clk 0:01:37.1]} 19... Nxg4+ {[%clk
0:02:53.2]} 20. Kg2 {[%clk 0:01:34.3]} 20... Ne3+ {[%clk 0:02:52.3]} 21. Kf2
{[%clk 0:01:33.4]} 21... Ng4+ {[%clk 0:02:36.1]} 22. Kg2 {[%clk 0:01:33.9]}
22... Qf4 {[%clk 0:02:36.1]} 23. Rxe8 {[%clk 0:01:17.6]} 23... Rxe8 {[%clk
0:02:38]} 24. fxg4 {[%clk 0:01:02.4]} 24... Re3 {[%clk 0:02:32.4]} 25. Ne2
{[%clk 0:00:24.9]} 25... Qxg4+ {[%clk 0:02:27.8]} 0-1

[Event "*** Titled Tuesday Blitz"]
[Site "Chess.com"]
[Date "2019.02.05"]
[Round "6"]
[White "wonderfultime"]
[Black "ori99"]
[Result "1-0"]
[WhiteElo "2874"]
[BlackElo "2031"]
[TimeControl "180+2"]
[EndTime "14:20:35 PST"]
[Termination "wonderfultime won by resignation"]

1. d4 {[%clk 0:03:01.9]} 1... Nf6 {[%clk 0:02:58.7]} 2. Nf3 {[%clk 0:03:03]}
2... e5 {[%clk 0:02:58.7]} 3. dxe5 {[%clk 0:03:02]} 3... Ng8 {[%clk 0:02:59.6]}
4. e4 {[%clk 0:02:59.9]} 4... Nc6 {[%clk 0:03:00.2]} 5. Bc4 {[%clk 0:02:59.1]}
5... Bc5 {[%clk 0:02:56.3]} 6. Bxf7+ {[%clk 0:02:58.8]} 6... Kxf7 {[%clk
0:02:56.9]} 7. Qd5+ {[%clk 0:03:00]} 7... Kf8 {[%clk 0:02:56.7]} 8. Qxc5+ {[%clk
0:03:01.3]} 8... Nge7 {[%clk 0:02:56.9]} 9. O-O {[%clk 0:02:58.5]} 9... b6
{[%clk 0:02:52.6]} 10. Qc3 {[%clk 0:02:56.4]} 10... Kg8 {[%clk 0:02:46.4]} 11.
Qb3+ {[%clk 0:02:55.5]} 11... Kf8 {[%clk 0:02:46]} 12. Nc3 {[%clk 0:02:42.1]}
12... Ba6 {[%clk 0:02:17.5]} 13. Rd1 {[%clk 0:02:42.5]} 13... Qe8 {[%clk
0:02:14.5]} 14. e6 {[%clk 0:02:35.8]} 14... dxe6 {[%clk 0:02:08.4]} 15. Qxe6
{[%clk 0:02:35.2]} 15... Bc8 {[%clk 0:01:47.9]} 16. Qc4 {[%clk 0:02:35]} 16...
Qg6 {[%clk 0:01:40.2]} 17. Nd5 {[%clk 0:02:24]} 17... Be6 {[%clk 0:01:23.1]} 18.
Qc3 {[%clk 0:02:19.5]} 18... Qxe4 {[%clk 0:01:14.2]} 19. Nxc7 {[%clk 0:02:12.3]}
19... Rd8 {[%clk 0:00:57.7]} 20. Re1 {[%clk 0:02:13.2]} 20... Qxe1+ {[%clk
0:00:35.2]} 21. Nxe1 {[%clk 0:02:10.7]} 21... Bc8 {[%clk 0:00:30.8]} 22. Bg5
{[%clk 0:02:10.9]} 22... Rd7 {[%clk 0:00:28.4]} 23. Ne6+ {[%clk 0:02:12.1]}
23... Kf7 {[%clk 0:00:25.9]} 24. Qxg7+ {[%clk 0:02:12.9]} 1-0

[Event "*** Titled Tuesday Blitz"]
[Site "Chess.com"]
[Date "2019.02.05"]
[Round "6"]
[White "x-3738459472"]
[Black "Antipov_Mikhail_Al"]
[Result "0-1"]
[WhiteElo "2505"]
[BlackElo "2729"]
[TimeControl "180+2"]
[EndTime "14:21:08 PST"]
[Termination "Antipov_Mikhail_Al won by resignation"]

1. e4 {[%clk 0:03:01.9]} 1... c5 {[%clk 0:02:58.6]} 2. Nc3 {[%clk 0:03:02.9]}
2... Nc6 {[%clk 0:02:58.9]} 3. Bb5 {[%clk 0:03:03.7]} 3... Nd4 {[%clk
0:02:59.2]} 4. Bc4 {[%clk 0:03:04.8]} 4... e6 {[%clk 0:02:57.8]} 5. Nf3 {[%clk
0:03:06.1]} 5... Qc7 {[%clk 0:02:55.4]} 6. O-O {[%clk 0:03:04.6]} 6... Nf6
{[%clk 0:02:54.5]} 7. Re1 {[%clk 0:03:03.6]} 7... Ng4 {[%clk 0:02:53.4]} 8. g3
{[%clk 0:03:04.6]} 8... Nxf3+ {[%clk 0:02:53.5]} 9. Qxf3 {[%clk 0:03:06.5]} 9...
Ne5 {[%clk 0:02:54.9]} 10. Qe2 {[%clk 0:03:08]} 10... a6 {[%clk 0:02:50.2]} 11.
a4 {[%clk 0:03:07.6]} 11... b6 {[%clk 0:02:06]} 12. d3 {[%clk 0:03:08.3]} 12...
Nxc4 {[%clk 0:01:53.1]} 13. dxc4 {[%clk 0:03:08.6]} 13... Bd6 {[%clk 0:01:46.8]}
14. Bg5 {[%clk 0:02:39.3]} 14... f6 {[%clk 0:01:40.3]} 15. Be3 {[%clk 0:01:21]}
15... O-O {[%clk 0:01:25.7]} 16. Rad1 {[%clk 0:01:22.9]} 16... Be5 {[%clk
0:01:19.7]} 17. Ra1 {[%clk 0:01:24.8]} 17... Bxc3 {[%clk 0:01:05]} 18. Rad1
{[%clk 0:01:26.7]} 18... Bxe1 {[%clk 0:01:05.2]} 19. Rd3 {[%clk 0:01:28.6]}
19... Ba5 {[%clk 0:01:03.3]} 0-1

[Event "*** Titled Tuesday Blitz"]
[Site "Chess.com"]
[Date "2019.02.05"]
[Round "6"]
[White "DoHoChess"]
[Black "MatthewG-p4p"]
[Result "0-1"]
[WhiteElo "2607"]
[BlackElo "2679"]
[TimeControl "180+2"]
[EndTime "14:21:13 PST"]
[Termination "MatthewG-p4p won by resignation"]

1. Nf3 {[%clk 0:02:57.2]} 1... c5 {[%clk 0:03:00.6]} 2. c4 {[%clk 0:02:57.7]}
2... Nc6 {[%clk 0:03:01.5]} 3. Nc3 {[%clk 0:02:58.4]} 3... g6 {[%clk 0:03:02.3]}
4. e3 {[%clk 0:02:59.2]} 4... Nf6 {[%clk 0:03:03.3]} 5. d4 {[%clk 0:03:00.7]}
5... cxd4 {[%clk 0:03:04.1]} 6. exd4 {[%clk 0:03:02.6]} 6... d5 {[%clk
0:03:05.7]} 7. cxd5 {[%clk 0:03:04]} 7... Nxd5 {[%clk 0:03:07.4]} 8. Qb3 {[%clk
0:03:03.7]} 8... Nxc3 {[%clk 0:03:08.8]} 9. Bc4 {[%clk 0:03:03.9]} 9... e6
{[%clk 0:03:10.2]} 10. bxc3 {[%clk 0:03:04.7]} 10... a6 {[%clk 0:03:11.5]} 11.
Bd3 {[%clk 0:02:58.9]} 11... Bg7 {[%clk 0:03:06.9]} 12. Ba3 {[%clk 0:02:59.1]}
12... Ne7 {[%clk 0:03:07.9]} 13. h4 {[%clk 0:02:52.3]} 13... O-O {[%clk
0:03:04.7]} 14. h5 {[%clk 0:02:53]} 14... Re8 {[%clk 0:03:05.5]} 15. hxg6 {[%clk
0:02:48.1]} 15... hxg6 {[%clk 0:03:06.3]} 16. Ng5 {[%clk 0:02:30.2]} 16... Nd5
{[%clk 0:03:04.7]} 17. Ne4 {[%clk 0:02:13]} 17... Nf4 {[%clk 0:02:57.3]} 18. Bf1
{[%clk 0:01:57.6]} 18... e5 {[%clk 0:02:57.2]} 19. Nd6 {[%clk 0:01:52.4]} 19...
exd4+ {[%clk 0:02:54.5]} 20. Nxe8 {[%clk 0:01:51.4]} 20... Qxe8+ {[%clk
0:02:55.8]} 21. Kd1 {[%clk 0:01:52.3]} 21... Bd7 {[%clk 0:02:48.9]} 22. Bc4
{[%clk 0:01:29.6]} 22... dxc3 {[%clk 0:02:28.7]} 23. Re1 {[%clk 0:01:09.9]}
23... Bg4+ {[%clk 0:02:17.4]} 24. f3 {[%clk 0:00:39.6]} 24... Qd7+ {[%clk
0:02:17.1]} 25. Bd5 {[%clk 0:00:16.3]} 25... Nxd5 {[%clk 0:02:16.6]} 26. Kc1
{[%clk 0:00:14.8]} 26... Bh6+ {[%clk 0:02:13.3]} 27. Kc2 {[%clk 0:00:15]} 27...
Bf5+ {[%clk 0:02:14]} 28. Re4 {[%clk 0:00:15.6]} 0-1

[Event "*** Titled Tuesday Blitz"]
[Site "Chess.com"]
[Date "2019.02.05"]
[Round "6"]
[White "indfraeng"]
[Black "arctic_t00"]
[Result "0-1"]
[WhiteElo "1964"]
[BlackElo "2344"]
[TimeControl "180+2"]
[EndTime "14:21:21 PST"]
[Termination "arctic_t00 won on time"]

1. d4 {[%clk 0:03:01.9]} 1... Nf6 {[%clk 0:03:00.8]} 2. c4 {[%clk 0:02:59.6]}
2... e6 {[%clk 0:02:59.3]} 3. g3 {[%clk 0:02:59.3]} 3... Bb4+ {[%clk 0:02:58.9]}
4. Bd2 {[%clk 0:02:59.2]} 4... Bxd2+ {[%clk 0:02:59.5]} 5. Qxd2 {[%clk
0:02:59.6]} 5... d5 {[%clk 0:03:00.9]} 6. Nf3 {[%clk 0:02:59.3]} 6... O-O {[%clk
0:03:01.8]} 7. Bg2 {[%clk 0:02:59.5]} 7... c6 {[%clk 0:02:56.3]} 8. Qc2 {[%clk
0:02:57.2]} 8... b6 {[%clk 0:02:50.8]} 9. Nbd2 {[%clk 0:02:55.7]} 9... Bb7
{[%clk 0:02:49.3]} 10. O-O {[%clk 0:02:55.8]} 10... Nbd7 {[%clk 0:02:50.2]} 11.
e4 {[%clk 0:02:55.3]} 11... dxe4 {[%clk 0:02:51.1]} 12. Nxe4 {[%clk 0:02:55.7]}
12... Nxe4 {[%clk 0:02:51.6]} 13. Qxe4 {[%clk 0:02:56.2]} 13... Nf6 {[%clk
0:02:52.8]} 14. Qd3 {[%clk 0:02:52.4]} 14... Qc7 {[%clk 0:02:51.5]} 15. c5
{[%clk 0:02:36.5]} 15... Rad8 {[%clk 0:02:49.9]} 16. Qc4 {[%clk 0:02:31.5]}
16... Nd5 {[%clk 0:02:24.9]} 17. Rac1 {[%clk 0:02:19.4]} 17... Qc8 {[%clk
0:02:24.3]} 18. Rfd1 {[%clk 0:02:02.4]} 18... Ba6 {[%clk 0:02:22.5]} 19. Qa4
{[%clk 0:02:01.8]} 19... Be2 {[%clk 0:02:21]} 20. Rd2 {[%clk 0:02:01.6]} 20...
Bxf3 {[%clk 0:02:21.5]} 21. Bxf3 {[%clk 0:02:01.3]} 21... b5 {[%clk 0:01:54.9]}
22. Bxd5 {[%clk 0:01:37.7]} 22... bxa4 {[%clk 0:01:52.9]} 0-1

[Event "*** Titled Tuesday Blitz"]
[Site "Chess.com"]
[Date "2019.02.05"]
[Round "6"]
[White "GukeshDommaraju"]
[Black "jsdbv18"]
[Result "1-0"]
[WhiteElo "2692"]
[BlackElo "2487"]
[TimeControl "180+2"]
[EndTime "14:21:25 PST"]
[Termination "GukeshDommaraju won by resignation"]

1. e4 {[%clk 0:03:01.9]} 1... c5 {[%clk 0:03:00.8]} 2. Nf3 {[%clk 0:03:02.5]}
2... d6 {[%clk 0:03:01.9]} 3. Bb5+ {[%clk 0:03:02.2]} 3... Nd7 {[%clk
0:03:02.5]} 4. Ba4 {[%clk 0:03:01]} 4... Nf6 {[%clk 0:03:02.5]} 5. O-O {[%clk
0:03:02]} 5... g6 {[%clk 0:03:03.6]} 6. Re1 {[%clk 0:03:02]} 6... Bg7 {[%clk
0:03:04.2]} 7. c3 {[%clk 0:03:02.9]} 7... O-O {[%clk 0:03:05.5]} 8. d4 {[%clk
0:03:04.3]} 8... e6 {[%clk 0:03:01.9]} 9. h3 {[%clk 0:03:00]} 9... a6 {[%clk
0:02:59.3]} 10. Bc2 {[%clk 0:03:00.6]} 10... b6 {[%clk 0:02:59.9]} 11. a4 {[%clk
0:03:00.4]} 11... Bb7 {[%clk 0:03:00.8]} 12. Na3 {[%clk 0:03:00.9]} 12... Rc8
{[%clk 0:03:00.1]} 13. Nc4 {[%clk 0:03:01.3]} 13... Ne8 {[%clk 0:02:48]} 14.
dxc5 {[%clk 0:01:57.4]} 14... Nxc5 {[%clk 0:02:47.7]} 15. a5 {[%clk 0:01:54.7]}
15... b5 {[%clk 0:02:36.2]} 16. Nb6 {[%clk 0:01:55.3]} 16... Rb8 {[%clk
0:02:35.3]} 17. Bg5 {[%clk 0:01:55.1]} 17... Bf6 {[%clk 0:02:29.8]} 18. Bh6
{[%clk 0:01:55.2]} 18... Bg7 {[%clk 0:02:27.9]} 19. Qd2 {[%clk 0:01:54.7]} 19...
Nf6 {[%clk 0:02:18]} 20. Bxg7 {[%clk 0:01:40.5]} 20... Kxg7 {[%clk 0:02:17.8]}
21. Rad1 {[%clk 0:01:09.6]} 21... Nfxe4 {[%clk 0:02:03]} 22. Bxe4 {[%clk
0:01:06.2]} 22... Bxe4 {[%clk 0:02:03.2]} 23. Qd4+ {[%clk 0:00:53.4]} 23... e5
{[%clk 0:02:02.6]} 24. Qxc5 {[%clk 0:00:54.4]} 24... Bxf3 {[%clk 0:01:57.1]} 25.
Rxd6 {[%clk 0:00:53.5]} 25... Qg5 {[%clk 0:01:57.7]} 26. Qxe5+ {[%clk
0:00:54.4]} 26... Qxe5 {[%clk 0:01:57.9]} 27. Rxe5 {[%clk 0:00:56.3]} 27... Bb7
{[%clk 0:01:54]} 28. Re7 {[%clk 0:00:51.6]} 28... Rfe8 {[%clk 0:01:52.7]} 29.
Rc7 {[%clk 0:00:51.6]} 29... Re1+ {[%clk 0:01:45.7]} 30. Kh2 {[%clk 0:00:52]}
30... Re2 {[%clk 0:01:47.2]} 31. Rdd7 {[%clk 0:00:52.9]} 31... Rxf2 {[%clk
0:01:45.7]} 32. Rxb7 {[%clk 0:00:53.7]} 32... Rxb7 {[%clk 0:01:46.5]} 33. Rxb7
{[%clk 0:00:55.6]} 33... Rxb2 {[%clk 0:01:47.7]} 34. Ra7 {[%clk 0:00:56.2]}
34... Rb3 {[%clk 0:01:49.1]} 35. Nd5 {[%clk 0:00:55.6]} 1-0

[Event "*** Titled Tuesday Blitz"]
[Site "Chess.com"]
[Date "2019.02.05"]
[Round "6"]
[White "Quiet_Desperation"]
[Black "Kurai"]
[Result "1/2-1/2"]
[WhiteElo "2412"]
[BlackElo "2478"]
[TimeControl "180+2"]
[EndTime "14:21:34 PST"]
[Termination "Game drawn by repetition"]

1. e4 {[%clk 0:03:01.9]} 1... e5 {[%clk 0:02:59.8]} 2. Nf3 {[%clk 0:03:02.8]}
2... Nc6 {[%clk 0:03:00.5]} 3. Bb5 {[%clk 0:03:04.5]} 3... a6 {[%clk 0:03:00.7]}
4. Ba4 {[%clk 0:03:05.6]} 4... Nf6 {[%clk 0:03:01.4]} 5. d3 {[%clk 0:03:07.2]}
5... d6 {[%clk 0:03:01]} 6. h3 {[%clk 0:03:06.7]} 6... Be7 {[%clk 0:02:59.7]} 7.
O-O {[%clk 0:03:07.8]} 7... b5 {[%clk 0:03:00.6]} 8. Bb3 {[%clk 0:03:08.2]} 8...
O-O {[%clk 0:03:01.3]} 9. c3 {[%clk 0:03:09.6]} 9... h6 {[%clk 0:03:01.1]} 10.
Re1 {[%clk 0:03:10.9]} 10... Be6 {[%clk 0:03:01.8]} 11. Nbd2 {[%clk 0:03:11.7]}
11... Qc8 {[%clk 0:03:00]} 12. Kh2 {[%clk 0:03:09.7]} 12... Rd8 {[%clk
0:03:00.2]} 13. Nf1 {[%clk 0:03:10.8]} 13... Bxb3 {[%clk 0:02:54.9]} 14. axb3
{[%clk 0:03:08.8]} 14... Rb8 {[%clk 0:02:51]} 15. Ng3 {[%clk 0:03:09.9]} 15...
Bf8 {[%clk 0:02:50.2]} 16. Nf5 {[%clk 0:03:10.4]} 16... Ne7 {[%clk 0:02:44.2]}
17. N3h4 {[%clk 0:03:07.2]} 17... Nxf5 {[%clk 0:02:44.3]} 18. Nxf5 {[%clk
0:03:08.2]} 18... Kh7 {[%clk 0:02:34.5]} 19. Qf3 {[%clk 0:03:02.8]} 19... Ng8
{[%clk 0:02:16.1]} 20. Be3 {[%clk 0:02:48.8]} 20... c5 {[%clk 0:01:54.4]} 21. d4
{[%clk 0:02:42.9]} 21... g6 {[%clk 0:01:41.4]} 22. Ng3 {[%clk 0:02:42.3]} 22...
Qb7 {[%clk 0:01:40.2]} 23. dxc5 {[%clk 0:02:21.9]} 23... dxc5 {[%clk 0:01:41]}
24. Red1 {[%clk 0:02:21.3]} 24... Kg7 {[%clk 0:01:38.8]} 25. Qg4 {[%clk
0:02:06.2]} 25... Kh7 {[%clk 0:01:03.6]} 26. Qf3 {[%clk 0:01:33.4]} 26... Kg7
{[%clk 0:01:02.2]} 27. Qg4 {[%clk 0:01:32.5]} 27... Kh7 {[%clk 0:00:44.3]} 28.
Qf3 {[%clk 0:01:09.6]} 28... Kg7 {[%clk 0:00:44.8]} 1/2-1/2

[Event "*** Titled Tuesday Blitz"]
[Site "Chess.com"]
[Date "2019.02.05"]
[Round "6"]
[White "OscarAng"]
[Black "saraswathii"]
[Result "0-1"]
[WhiteElo "2401"]
[BlackElo "2277"]
[TimeControl "180+2"]
[EndTime "14:21:35 PST"]
[Termination "saraswathii won by resignation"]

1. d4 {[%clk 0:03:01.9]} 1... Nf6 {[%clk 0:02:58.5]} 2. Bg5 {[%clk 0:03:03.4]}
2... g6 {[%clk 0:02:58.5]} 3. Nc3 {[%clk 0:03:04]} 3... Bg7 {[%clk 0:02:59.2]}
4. e4 {[%clk 0:03:05.5]} 4... d6 {[%clk 0:03:00.3]} 5. Qd2 {[%clk 0:03:05.5]}
5... O-O {[%clk 0:03:00.5]} 6. O-O-O {[%clk 0:03:05.8]} 6... a6 {[%clk
0:02:56.4]} 7. f4 {[%clk 0:03:07.3]} 7... b5 {[%clk 0:02:55.3]} 8. e5 {[%clk
0:03:08.8]} 8... dxe5 {[%clk 0:02:35]} 9. dxe5 {[%clk 0:03:07.9]} 9... Nfd7
{[%clk 0:02:35.5]} 10. Nd5 {[%clk 0:03:06.3]} 10... Re8 {[%clk 0:02:25.5]} 11.
Nf3 {[%clk 0:03:02.7]} 11... c6 {[%clk 0:02:23]} 12. Ne3 {[%clk 0:03:00.6]}
12... Qc7 {[%clk 0:02:21.3]} 13. Kb1 {[%clk 0:02:51.9]} 13... Nc5 {[%clk
0:02:21.5]} 14. h3 {[%clk 0:02:48.9]} 14... a5 {[%clk 0:02:14.8]} 15. Qc3 {[%clk
0:02:49.3]} 15... Ne4 {[%clk 0:02:13.6]} 16. Qd3 {[%clk 0:02:45.2]} 16... Nf2
{[%clk 0:02:12.1]} 17. Qe2 {[%clk 0:02:43.6]} 17... Nxh1 {[%clk 0:02:11.4]} 18.
Bh4 {[%clk 0:02:38.7]} 18... Be6 {[%clk 0:01:51.9]} 19. g4 {[%clk 0:02:39.3]}
19... Na6 {[%clk 0:01:25.5]} 20. Bg2 {[%clk 0:02:36.8]} 20... Rad8 {[%clk
0:01:24.2]} 21. Rxh1 {[%clk 0:02:33.7]} 21... Nb4 {[%clk 0:01:17.5]} 22. a3
{[%clk 0:02:33.3]} 22... Nd5 {[%clk 0:01:16.4]} 23. Nd4 {[%clk 0:02:31.2]} 23...
Nxf4 {[%clk 0:01:13]} 24. Nxe6 {[%clk 0:02:32.7]} 24... Nxe6 {[%clk 0:01:09.2]}
25. Rf1 {[%clk 0:02:18.3]} 25... Qxe5 {[%clk 0:01:03.8]} 26. c3 {[%clk
0:02:05.9]} 26... Nf4 {[%clk 0:00:47.1]} 27. Qf2 {[%clk 0:01:55.4]} 27... Nxg2
{[%clk 0:00:43]} 28. Qxf7+ {[%clk 0:01:54.8]} 28... Kh8 {[%clk 0:00:43.4]} 29.
Nxg2 {[%clk 0:01:56.5]} 29... Qe4+ {[%clk 0:00:43.9]} 30. Ka2 {[%clk 0:01:54.8]}
30... Qxg2 {[%clk 0:00:41]} 31. Bxe7 {[%clk 0:01:56.1]} 31... Qd5+ {[%clk
0:00:38.6]} 32. c4 {[%clk 0:01:57.5]} 32... Qxf7 {[%clk 0:00:38.7]} 33. Rxf7
{[%clk 0:01:58]} 33... Rd7 {[%clk 0:00:39.5]} 0-1